bitfinex/quotes_ETHUSD_20240621
["timestamp","ask_amount","ask_price","bid_price","bid_amount"]
[1718994720693,0.028,3492.4,3491.6,2.2912]
[1718994720897,0.028,3492.4,3491.0,7.44]
[1718994721099,0.028,3492.4,3491.3,2.29139]
[1718994721302,0.028,3492.4,3491.4,2.29133]
[1718994721471,0.27077,3492.4,3491.4,2.29133]
[1718994721669,3.27077,3492.4,3491.4,2.29133]
[1718994722199,3.27077,3492.4,3491.1,3.47422]
[1718994722380,2.3967,3492.3,3491.2,2.29145]
[1718994722578,0.028,3492.2,3491.0,7.44]
[1718994722779,0.028,3492.2,3489.2,3.04274]
[1718994722780,2.3967,3492.1,3490.3,2.292]
[1718994722973,2.3967,3491.9,3490.3,3.494461]
[1718994723173,0.028,3492.0,3490.3,2.29205]
[1718994723174,2.2651,3491.7,3490.3,2.29205]
[1718994723374,0.028,3491.6,3490.3,2.29205]
[1718994723873,2.3904,3491.5,3490.1,2.29213]
[1718994724080,0.26984,3491.4,3490.1,2.29213]
[1718994724283,0.26984,3491.4,3490.2,2.29213]
[1718994724605,3.26984,3491.4,3490.0,2.29226]
[1718994725175,3.26984,3491.4,3490.0,4.58446]
[1718994725373,0.566024,3491.3,3490.1,2.29218]
[1718994725707,0.028,3491.2,3490.1,2.29218]
[1718994725917,0.028,3491.2,3490.1,4.58436]
[1718994726076,0.028,3491.2,3490.2,2.2921]
[1718994726415,0.028,3491.2,3490.2,0.776558]
[1718994726580,0.028,3491.2,3490.0,2.29224]
[1718994726774,2.2576,3491.1,3490.0,2.29224]
[1718994727011,0.028,3491.0,3490.0,2.29224]
[1718994728014,0.028,3491.0,3489.9,2.29232]
[1718994728201,0.028,3491.0,3489.9,3.181336]
[1718994729798,0.028,3491.0,3489.9,0.889016]
[1718994733184,0.028,3491.0,3489.8,2.013]
[1718994733384,0.028,3491.0,3489.7,2.29245]
[1718994734496,0.028,3491.0,3489.8,2.29239]
[1718994735814,1.2856,3491.1,3489.8,2.29239]
[1718994736624,1.2856,3491.1,3489.8,2.19239]
[1718994736818,1.4707624,3491.1,3489.9,0.448491]
[1718994737411,1.4707624,3491.1,3489.6,2.29252]
[1718994737907,1.4707624,3491.1,3489.7,2.29244]
[1718994740081,1.4707624,3491.1,3489.5,4.30559]
[1718994740285,2.3226,3491.0,3489.5,4.30559]
[1718994740497,5.3226,3491.0,3489.5,4.30559]
[1718994740696,0.55077624,3490.9,3489.6,0.659829]
[1718994740896,3.55077624,3490.9,3489.6,0.659829]
[1718994742420,3.55077624,3490.9,3489.6,2.952339]
[1718994743032,3.55077624,3490.9,3489.6,0.659829]
[1718994743229,3.0,3490.9,3489.6,0.659829]
[1718994743403,5.3226,3491.0,3489.7,2.29243]
[1718994744424,5.3226,3491.0,3489.6,2.952339]
[1718994745594,5.3226,3491.0,3489.8,2.306]
[1718994745795,2.3226,3491.0,3490.1,2.29214]
[1718994745996,0.29599687,3491.3,3490.3,2.29206]
[1718994746224,2.4133,3491.9,3490.9,2.29166]
[1718994746423,2.4133,3491.9,3490.7,2.29179]
[1718994746424,2.4133,3491.9,3491.2,2.29147]
[1718994746623,2.4133,3491.9,3491.3,0.430447]
[1718994746830,2.4133,3491.9,3491.1,2.29153]
[1718994746996,2.4133,3491.9,3491.0,4.30458]
[1718994747197,2.4133,3492.5,3491.1,0.55]
[1718994747395,5.4133,3492.5,3491.1,0.55]
[1718994747625,1.27033,3492.4,3491.3,2.2914]
[1718994747844,4.27033,3492.4,3491.3,2.2914]
[1718994748220,4.27033,3492.4,3491.2,0.485458]
[1718994748541,4.27033,3492.4,3491.2,2.776868]
[1718994748748,1.397363,3492.3,3491.1,2.29153]
[1718994748910,4.397363,3492.3,3491.1,2.29153]
[1718994749240,1.397363,3492.3,3491.1,2.29153]
[1718994749609,1.397363,3492.3,3491.2,0.053119]
[1718994749813,3.0,3492.4,3491.5,2.29126]
[1718994750143,2.4133,3492.5,3491.6,0.0531129]
[1718994750646,2.4133,3492.5,3491.6,2.29115]
[1718994751213,2.4133,3492.5,3491.3,2.2914]
[1718994751449,0.24133,3492.4,3490.9,2.29161]
[1718994751672,0.24133,3492.4,3490.7,2.29175]
[1718994751954,0.265463,3492.3,3491.0,2.2916]
[1718994752311,0.265463,3492.3,3490.7,2.2918]
[1718994752508,2.2914,3492.2,3490.7,2.2918]
[1718994752919,5.2914,3492.2,3490.7,2.2918]
[1718994753134,0.78206256,3492.1,3490.7,2.2918]
[1718994753369,3.78206256,3492.1,3490.7,2.2918]
[1718994753554,3.78206256,3492.1,3490.7,4.5836]
[1718994754081,3.78206256,3492.1,3490.9,2.29165]
[1718994754551,3.78206256,3492.1,3491.0,2.29158]
[1718994754756,0.66383582,3492.0,3490.9,2.29165]
[1718994755070,3.0,3492.1,3491.5,2.29123]
[1718994755220,2.2914,3492.2,3491.6,2.2912]
[1718994756111,2.3305,3492.8,3491.6,2.2912]
[1718994756352,2.3305,3492.8,3491.9,2.291]
[1718994758429,2.3305,3492.8,3492.2,2.29081]
[1718994758760,3.0,3493.2,3492.2,0.458168]
[1718994758935,2.4312,3493.3,3492.5,2.29062]
[1718994759245,2.4312,3493.3,3492.6,0.05725815]
[1718994759668,2.67432,3493.3,3492.5,2.29062]
[1718994759875,2.67432,3493.3,3492.3,2.29072]
[1718994759876,3.0,3493.2,3492.3,2.29072]
[1718994762595,3.0,3493.2,3492.4,2.29067]
[1718994763184,3.0,3493.2,3492.0,4.30391]
[1718994763379,3.0,3493.2,3492.2,2.29081]
[1718994763717,3.0,3493.2,3492.3,2.29072]
[1718994763718,3.567432,3493.2,3492.3,2.29072]
[1718994763865,3.0,3493.2,3492.5,2.29061]
[1718994765109,3.0,3493.2,3492.6,2.29054]
[1718994765271,3.0,3493.2,3492.5,2.29061]
[1718994765474,2.4312,3493.3,3492.5,4.58122]
[1718994765684,2.4312,3493.3,3492.6,2.29054]
[1718994766081,2.4312,3493.3,3492.6,2.748665]
[1718994766381,0.28630987,3493.8,3492.9,2.2903]
[1718994766570,2.3487,3494.0,3492.9,2.2903]
[1718994767634,2.3487,3494.0,3493.0,2.29028]
[1718994767780,2.3487,3494.0,3493.2,2.2901]
[1718994768296,2.3487,3494.0,3493.4,2.29003]
[1718994769269,0.1204033,3494.2,3493.1,2.29021]
[1718994769551,0.1204033,3494.2,3493.5,2.28993]
[1718994769917,0.1204033,3494.2,3493.3,2.29009]
[1718994771313,0.1204033,3494.2,3493.4,2.28999]
[1718994771773,0.1204033,3494.2,3493.6,2.2899]
[1718994771921,0.1204033,3494.2,3493.5,2.28992]
[1718994772279,0.1204033,3494.2,3493.9,2.2897]
[1718994772982,0.1204033,3494.2,3493.7,2.28978]
[1718994773186,0.1204033,3494.2,3494.1,4.57914]
[1718994773475,0.1204033,3494.2,3494.1,2.28957]
[1718994773826,0.1204033,3494.2,3494.1,4.57914]
[1718994774031,0.1204033,3494.2,3494.1,6.86871]
[1718994774458,0.1204033,3494.2,3494.1,9.25841]
[1718994774666,0.1204033,3494.2,3494.1,10.385551]
[1718994775169,0.1204033,3494.2,3494.1,3.416711]
[1718994775938,0.1204033,3494.2,3494.1,1.127141]
[1718994776142,0.1204033,3494.2,3494.0,2.013]
[1718994776534,0.1204033,3494.2,3494.1,2.28957]
[1718994776767,0.1204033,3494.2,3493.9,2.28964]
[1718994776971,0.1204033,3494.2,3493.7,2.28978]
[1718994777271,0.1204033,3494.2,3493.7,1.17674349]
[1718994777463,0.1204033,3494.2,3493.6,2.28989]
[1718994777881,0.1204033,3494.2,3493.5,2.80082491]
[1718994778115,0.1204033,3494.2,3493.5,0.51091491]
[1718994778280,0.1204033,3494.2,3493.4,2.29003]
[1718994779178,0.1204033,3494.2,3493.2,2.519181]
[1718994779505,0.1204033,3494.2,3493.4,2.29002]
[1718994779720,0.1204033,3494.2,3493.5,2.28996]
[1718994780072,0.1204033,3494.2,3493.4,4.30302]
[1718994780274,0.1204033,3494.2,3493.5,1.0582041]
[1718994780569,0.1204033,3494.2,3494.0,2.28963]
[1718994780765,0.1204033,3494.2,3494.1,2.28957]
[1718994780967,0.1204033,3494.2,3494.1,2.34680219]
[1718994781215,0.1204033,3494.2,3493.7,2.28977]
[1718994781525,0.1204033,3494.2,3493.9,2.28969]
[1718994781950,0.1204033,3494.2,3493.8,0.80605241]
[1718994782104,0.1204033,3494.2,3493.6,2.28986]
[1718994782436,0.1204033,3494.2,3493.5,0.5082041]
[1718994782589,0.1204033,3494.2,3493.5,2.7981641]
[1718994783096,2.4771,3494.1,3493.5,0.5082041]
[1718994783398,2.4771,3494.1,3493.3,2.29009]
[1718994783399,5.4771,3494.1,3493.3,2.29009]
[1718994783598,5.4771,3494.1,3493.2,2.29012]
[1718994783805,5.4771,3494.1,3493.3,0.458034]
[1718994784102,5.4771,3494.1,3493.3,2.748064]
[1718994784308,3.0,3494.1,3493.3,0.458034]
[1718994784500,0.1204033,3494.2,3493.6,2.28987]
[1718994785392,0.1204033,3494.2,3493.9,2.2897]
[1718994785591,0.1204033,3494.2,3493.3,2.29006]
[1718994786042,0.1204033,3494.2,3493.5,2.28996]
[1718994786206,0.1204033,3494.2,3493.6,0.228996]
[1718994786412,0.1204033,3494.2,3493.4,2.28997]
[1718994786740,0.1204033,3494.2,3493.1,2.013]
[1718994786975,0.1204033,3494.2,3494.1,2.28957]
[1718994787967,0.1204033,3494.2,3494.1,4.57914]
[1718994788119,0.1204033,3494.2,3494.1,2.97646]
[1718994788327,0.1204033,3494.2,3494.1,5.26603]
[1718994789032,0.1204033,3494.2,3494.1,7.5556]
[1718994789341,0.1204033,3494.2,3494.1,5.26603]
[1718994789721,0.1204033,3494.2,3494.1,7.5556]
[1718994790354,0.1204033,3494.2,3494.1,8.1056]
[1718994790821,0.1204033,3494.2,3494.1,10.39517]
[1718994791224,0.01364905,3494.2,3494.1,12.64947]
[1718994792973,0.00154747,3494.2,3494.1,12.64947]
[1718994793329,0.00154747,3494.2,3494.1,10.3599]
[1718994793535,0.00154747,3494.2,3494.1,12.64947]
[1718994793758,0.00154747,3494.2,3494.1,10.3599]
[1718994794080,0.00154747,3494.2,3494.1,12.64947]
[1718994794246,0.00154747,3494.2,3494.1,10.3599]
[1718994795534,0.00154747,3494.2,3494.1,12.64947]
[1718994795735,0.00154747,3494.2,3494.1,10.3599]
[1718994797772,0.00154747,3494.2,3494.1,12.64947]
[1718994799142,0.00154747,3494.2,3494.1,10.3599]
[1718994800431,0.00154747,3494.2,3494.1,5.81603]
[1718994800632,0.00154747,3494.2,3494.1,5.26603]
[1718994801042,0.00154747,3494.2,3494.1,7.5556]
[1718994801282,0.00154747,3494.2,3494.1,12.22897]
[1718994801575,0.00154747,3494.2,3494.1,9.9394]
[1718994802296,0.00154747,3494.2,3494.1,10.4894]
[1718994802975,0.00154747,3494.2,3494.1,12.77897]
[1718994803358,0.00154747,3494.2,3494.1,10.4894]
[1718994804506,3.0,3496.2,3495.0,2.3518]
[1718994804689,3.0,3496.2,3495.8,2.28844]
[1718994804888,2.281,3496.3,3495.8,2.28844]
[1718994805559,2.281,3496.3,3495.8,2.2884]
[1718994805799,2.281,3496.3,3495.5,2.28865]
[1718994806110,2.281,3496.3,3495.9,2.28838]
[1718994806593,2.281,3496.3,3496.0,2.28832]
[1718994806798,2.281,3496.3,3495.8,2.28846]
[1718994807022,2.281,3496.3,3495.9,2.28836]
[1718994809604,2.281,3496.3,3495.8,2.28845]
[1718994809921,2.281,3496.3,3495.4,2.28872]
[1718994810644,2.281,3496.3,3495.5,2.28864]
[1718994812142,2.281,3496.3,3495.7,2.2885]
[1718994812999,2.281,3496.3,3495.5,2.28865]
[1718994813243,2.281,3496.3,3495.5,2.975264]
[1718994813455,2.281,3496.3,3495.6,2.28856]
[1718994813960,2.281,3496.3,3495.7,2.28852]
[1718994814405,2.2924,3497.1,3495.9,2.28834]
[1718994814603,2.2924,3497.1,3496.1,2.28825]
[1718994814604,2.84999304,3497.1,3496.1,2.28825]
[1718994814832,3.0,3497.0,3496.2,2.28818]
[1718994815063,3.0,3497.0,3496.1,2.28825]
[1718994815064,3.0,3497.0,3496.3,2.28812]
[1718994815903,3.0,3497.0,3496.3,2.28807]
[1718994816205,2.2924,3497.1,3496.0,0.457685]
[1718994816440,0.22924,3497.0,3496.0,0.457685]
[1718994816610,3.22924,3497.0,3496.0,0.457685]
[1718994817945,2.2577,3496.9,3495.6,2.28858]
[1718994818240,2.2577,3496.9,3495.9,2.28838]
[1718994819150,2.2577,3496.9,3495.5,0.686614]
[1718994819312,2.2577,3496.9,3495.8,2.28845]
[1718994819512,2.2577,3496.9,3496.2,2.28814]
[1718994819715,2.2577,3496.9,3496.1,2.28825]
[1718994820020,2.2577,3496.9,3496.0,2.28832]
[1718994820421,2.2577,3496.9,3495.8,2.28845]
[1718994821241,2.2577,3496.9,3495.5,2.975244]
[1718994821441,2.48347,3496.9,3495.6,2.5860844]
[1718994822026,2.48347,3496.9,3495.5,2.28863]
[1718994822347,2.48347,3496.9,3495.6,2.28858]
[1718994822533,2.48347,3496.9,3495.5,2.28865]
[1718994823221,2.48347,3496.9,3495.6,2.28858]
[1718994823542,2.48347,3496.9,3495.5,2.28865]
[1718994823743,2.2896,3496.7,3495.5,2.28865]
[1718994823951,5.2896,3496.7,3495.5,2.28865]
[1718994824250,2.2896,3496.7,3495.5,2.28865]
[1718994824566,2.2896,3496.7,3495.6,2.28857]
[1718994824906,2.2896,3496.7,3495.7,2.28852]
[1718994825108,0.22896,3496.6,3495.7,2.28852]
[1718994825343,3.0,3496.6,3495.6,2.28857]
[1718994825558,3.0,3496.6,3495.9,2.28839]
[1718994825780,2.2896,3496.7,3496.1,2.28826]
[1718994826790,2.2896,3496.7,3496.3,2.28809]
[1718994826938,2.2896,3496.7,3496.3,2.718199]
[1718994828864,2.318,3497.7,3496.4,2.28806]
[1718994829058,2.318,3497.7,3496.2,2.28819]
[1718994829255,2.61657533,3497.7,3496.2,2.28819]
[1718994829571,2.318,3497.5,3496.2,2.28819]
[1718994829776,2.99875753,3497.4,3494.8,2.28905]
[1718994829977,3.0,3497.3,3495.8,2.28839]
[1718994830186,2.4371,3497.2,3495.8,2.28839]
[1718994830853,2.4371,3497.2,3495.9,2.28838]
[1718994831739,2.4371,3497.2,3496.1,2.28826]
[1718994832052,0.24371,3497.1,3496.1,2.28826]
[1718994832375,3.24371,3497.1,3496.1,2.28826]
[1718994832586,2.4898,3497.0,3495.7,2.28846]
[1718994832756,2.4898,3496.9,3495.7,2.28846]
[1718994832957,6.363151,3496.9,3495.8,0.45771]
[1718994833760,2.2893,3496.8,3495.5,2.28863]
[1718994834077,5.2893,3496.8,3495.6,2.28856]
[1718994835074,5.2893,3496.8,3495.5,2.28865]
[1718994836287,2.4843,3496.7,3495.5,2.28865]
[1718994836447,5.4843,3496.7,3495.6,2.28852]
[1718994836643,2.4843,3496.7,3495.6,2.83852]
[1718994836929,2.4843,3496.7,3495.7,2.28852]
[1718994837049,2.4843,3496.7,3495.9,2.28838]
[1718994837458,2.4843,3496.7,3495.8,2.8697562]
[1718994837688,2.4843,3496.7,3496.0,2.28826]
[1718994838196,2.341,3497.5,3496.1,2.28824]
[1718994838370,2.341,3497.5,3496.3,2.28812]
[1718994838555,2.341,3497.5,3496.2,2.28819]
[1718994840885,2.341,3497.5,3495.8,0.5813662]
[1718994841412,2.341,3497.5,3495.7,2.28851]
[1718994841710,2.3519,3497.4,3495.5,0.686622]
[1718994842007,2.3519,3497.2,3495.5,0.686622]
[1718994842507,2.3519,3497.1,3495.5,0.686622]
[1718994842714,2.2574,3497.0,3495.5,0.686622]
[1718994843007,2.2574,3496.9,3495.5,0.686622]
[1718994843597,2.2574,3496.9,3495.6,2.28857]
[1718994843806,2.78314,3496.9,3495.7,0.5263902]
[1718994844107,2.3081,3496.7,3495.1,2.28891]
[1718994844290,2.3081,3496.7,3495.2,0.55]
[1718994844982,2.3081,3496.7,3495.3,2.28878]
[1718994845790,2.3081,3496.7,3495.4,2.28872]
[1718994845992,2.3081,3496.7,3495.4,2.013]
[1718994846177,0.23081,3496.6,3495.4,2.013]
[1718994846375,3.23081,3496.6,3495.4,2.013]
[1718994847503,2.416,3496.5,3495.4,2.013]
[1718994847705,2.416,3496.4,3495.0,2.013]
[1718994847877,2.3606,3496.2,3495.1,0.2013]
[1718994848233,2.3606,3496.2,3495.0,2.013]
[1718994848509,2.3606,3496.2,3495.1,0.04357739]
[1718994848510,5.3606,3496.2,3495.1,0.04357739]
[1718994848713,2.3606,3496.2,3495.1,2.33245739]
[1718994848866,2.3606,3496.2,3495.2,0.66344974]
[1718994849072,2.3606,3496.2,3495.3,0.04359244]
[1718994849813,2.3606,3496.2,3495.0,2.013]
[1718994849981,2.3606,3496.2,3494.8,2.28909]
[1718994850174,2.3606,3496.2,3495.0,2.013]
[1718994850374,2.3606,3496.2,3495.0,4.30196]
[1718994850572,2.3606,3496.2,3495.3,2.28878]
[1718994850803,2.3606,3496.2,3495.4,2.013]
[1718994851114,2.3606,3496.2,3495.5,2.30709551]
[1718994851320,2.3606,3496.2,3495.6,0.66088155]
[1718994851466,2.3606,3496.2,3495.7,2.30699255]
[1718994851670,2.3606,3496.2,3495.8,2.31917627]
[1718994851957,2.4114,3497.2,3495.9,2.28837]
[1718994852073,2.4114,3497.2,3496.0,0.05719967]
[1718994852418,2.4114,3497.2,3496.1,0.66470297]
[1718994853208,2.4114,3497.2,3496.1,0.72190259]
[1718994853606,2.4114,3497.2,3496.1,3.01016259]
[1718994853812,2.4114,3497.2,3496.1,0.72190259]
[1718994854013,2.4114,3497.2,3496.1,0.05719962]
[1718994854309,2.4114,3497.2,3496.3,2.28809]
[1718994854514,2.4114,3497.2,3496.4,0.05719327]
[1718994855510,2.4114,3497.2,3496.4,2.34525327]
[1718994857425,2.4101458,3497.2,3496.4,2.34525327]
[1718994857625,2.4101458,3497.2,3496.4,3.0098916]
[1718994858185,2.4101458,3497.2,3496.4,0.7218316]
[1718994863408,2.4101458,3497.2,3496.4,0.66463833]
[1718994863604,2.4101458,3497.2,3495.9,2.28839]
[1718994864752,2.4101458,3497.2,3496.0,2.28831]
[1718994865321,2.4101458,3497.2,3496.1,2.28825]
[1718994867231,2.4101458,3497.2,3496.3,2.28807]
[1718994867451,2.4101458,3497.2,3496.6,2.28787]
[1718994869137,2.4101458,3497.2,3496.5,2.28799]
[1718994869870,3.28852686,3497.7,3496.4,2.516867]
[1718994869871,2.2642,3497.6,3496.4,2.516867]
[1718994870033,2.2642,3497.6,3496.5,0.4529867]
[1718994870530,3.0,3498.2,3496.5,0.4529867]
[1718994870531,5.2701,3498.2,3497.3,2.28747]
[1718994870731,2.2701,3498.2,3497.3,2.28747]
[1718994870933,2.2701,3498.2,3497.4,2.2874]
[1718994871431,2.2701,3498.2,3497.2,2.28751]
[1718994871635,2.2701,3498.2,3497.5,2.28729]
[1718994872551,2.2701,3498.2,3497.4,2.28741]
[1718994873235,2.2701,3498.2,3497.2,0.2013]
[1718994873440,2.2701,3498.2,3497.0,4.30066]
[1718994873657,2.2701,3498.2,3497.1,2.28757]
[1718994873963,2.2701,3498.2,3497.2,2.28754]
[1718994874134,2.2701,3498.2,3497.0,4.30066]
[1718994874135,2.2701,3498.2,3497.0,2.013]
[1718994874336,2.2701,3498.2,3497.1,0.44978]
[1718994875140,2.2588,3497.7,3496.6,7.99]
[1718994875343,2.2588,3497.7,3496.6,4.85092]
[1718994875842,2.2588,3497.7,3496.6,2.013]
[1718994876468,2.2588,3497.7,3496.5,2.7409667]
[1718994876775,2.2588,3497.7,3496.7,2.28786]
[1718994876942,2.2588,3497.7,3496.8,2.2878]
[1718994877144,2.2588,3497.7,3496.6,2.58491537]
[1718994877493,2.2588,3497.7,3496.7,2.28785]
[1718994877798,2.2588,3497.7,3496.8,0.53257421]
[1718994880492,2.2588,3497.7,3496.1,2.28824]
[1718994880869,2.3563,3497.5,3496.1,2.28825]
[1718994881068,2.3563,3497.5,3496.0,4.30132]
[1718994881390,5.3563,3497.5,3496.0,4.30132]
[1718994881561,0.56550112,3497.4,3496.2,2.28819]
[1718994881757,3.0,3497.4,3496.2,2.28819]
[1718994881974,5.3563,3497.5,3496.2,2.28819]
[1718994882684,5.3563,3497.5,3496.1,0.430132]
[1718994882884,5.3563,3497.5,3496.2,2.28818]
[1718994883087,5.3563,3497.5,3496.3,2.9900832]
[1718994883292,5.3563,3497.5,3496.6,2.28787]
[1718994883478,3.0,3497.4,3496.6,2.28787]
[1718994883673,2.3563,3497.5,3496.5,2.28799]
[1718994883972,2.3563,3497.5,3496.6,2.28787]
[1718994884175,2.3563,3497.5,3496.0,2.28828]
[1718994884401,2.281,3497.3,3496.1,0.465408]
[1718994884600,5.281,3497.3,3496.1,2.753658]
[1718994884900,2.281,3497.3,3496.1,2.753658]
[1718994885100,2.281,3497.3,3496.1,0.465408]
[1718994885313,2.5091,3497.3,3496.1,0.465408]
[1718994885471,3.0,3497.2,3496.1,0.465408]
[1718994885872,3.0,3497.2,3496.1,2.28825]
[1718994886073,3.0,3497.2,3495.9,2.28839]
[1718994886678,3.0,3497.2,3496.0,2.28832]
[1718994888680,2.281,3497.3,3496.4,2.28805]
[1718994889213,2.3084,3497.7,3497.0,2.28766]
[1718994890016,2.3084,3497.7,3497.1,2.2876]
[1718994890717,2.3084,3497.7,3497.2,0.05717946]
[1718994890900,2.3084,3497.7,3497.3,0.05717782]
[1718994891101,2.3084,3497.7,3497.3,0.5204216]
[1718994891415,2.3084,3497.7,3497.3,0.46324378]
[1718994891712,2.3084,3497.7,3497.3,0.05717946]
[1718994892520,2.4677,3498.1,3497.3,0.05717946]
[1718994892719,3.0,3498.0,3497.3,0.05717946]
[1718994893815,3.0,3498.0,3497.3,2.34464946]
[1718994894531,3.0,3498.0,3497.3,0.05717946]
[1718994894737,3.0,3498.0,3497.0,2.34484842]
[1718994894885,3.0,3498.0,3497.1,0.23448484]
[1718994895089,3.0,3498.0,3497.2,0.05717515]
[1718994895286,3.0,3498.0,3497.3,0.05717351]
[1718994895936,2.3564,3498.5,3497.3,0.05717351]
[1718994896297,2.3564,3498.5,3497.5,2.28732]
[1718994896505,2.3564,3498.5,3497.7,2.28721]
[1718994896813,2.3564,3498.5,3497.7,2.75038011]
[1718994897012,2.3564,3498.5,3497.7,0.46317011]
[1718994897190,2.3564,3498.5,3497.6,2.28728]
[1718994897385,2.3564,3498.5,3497.7,2.28721]
[1718994898328,2.3564,3498.5,3497.3,2.28742]
[1718994898617,2.3564,3498.5,3497.2,2.28754]
[1718994899027,2.3564,3498.5,3497.1,2.52208484]
[1718994899204,2.3564,3498.5,3497.2,0.99621548]
[1718994900001,2.3564,3498.5,3497.2,3.28374548]
[1718994900811,2.3564,3498.5,3497.5,2.28734]
[1718994901015,2.3564,3498.5,3497.4,2.2874]
[1718994901205,2.3564,3498.5,3497.5,0.32836155]
[1718994901538,1.723,3499.3,3497.5,0.32836155]
[1718994901539,2.4171,3500.8,3498.7,4.71991]
[1718994901740,2.4171,3500.8,3499.0,2.28635]
[1718994902036,2.4171,3500.8,3499.4,2.28609]
[1718994902248,2.4171,3500.8,3499.8,2.013]
[1718994902411,0.24171,3500.7,3500.0,2.2857]
[1718994902614,0.24171,3500.7,3500.3,2.013]
[1718994902826,2.4480033,3501.3,3500.3,2.013]
[1718994904398,4.1710033,3501.3,3499.5,2.28601]
[1718994904612,4.0693,3501.2,3499.5,2.28603]
[1718994904813,4.48640033,3501.2,3499.5,2.28603]
[1718994905115,4.48640033,3501.2,3499.8,2.28583]
[1718994905719,3.0,3501.1,3499.7,2.2859]
[1718994905925,3.66198036,3501.1,3499.9,2.28573]
[1718994906513,3.66198036,3501.1,3500.0,2.28571]
[1718994906713,3.66198036,3501.1,3499.9,2.28573]
[1718994907015,0.61286837,3501.0,3500.1,2.28562]
[1718994907230,0.61286837,3501.0,3499.8,2.28584]
[1718994907633,0.61286837,3501.0,3499.7,2.013]
[1718994907835,0.61286837,3501.0,3500.3,2.28545]
[1718994908077,0.59591684,3500.9,3500.3,2.28545]
[1718994910439,3.0,3501.1,3500.3,2.28545]
[1718994910633,2.3463,3501.2,3500.4,2.28543]
[1718994911364,2.3463,3501.2,3500.2,2.28552]
[1718994911564,2.3463,3501.2,3500.0,2.28565]
[1718994911759,2.3463,3501.2,3499.7,2.013]
[1718994911760,0.24667033,3501.1,3500.1,2.28562]
[1718994911962,3.24667033,3501.1,3500.3,2.2855]
[1718994912168,3.24667033,3501.1,3500.1,2.28559]
[1718994912367,0.57133736,3501.0,3500.0,2.28567]
[1718994912685,3.0,3501.1,3500.2,2.013]
[1718994912839,2.3463,3501.2,3500.8,2.28519]
[1718994913047,2.3463,3501.2,3500.7,2.28525]
[1718994913478,0.1204033,3501.3,3500.7,2.28525]
[1718994913678,0.1204033,3501.3,3501.1,2.28496]
[1718994913853,0.1204033,3501.3,3501.0,2.013]
[1718994914055,0.1204033,3501.3,3500.9,2.28509]
[1718994915397,0.1204033,3501.3,3499.6,2.28594]
[1718994915683,2.5961033,3501.3,3499.6,2.28596]
[1718994915895,2.457,3501.1,3498.9,7.44]
[1718994916182,4.18,3500.4,3498.7,2.28655]
[1718994916394,0.1204033,3501.3,3499.0,2.4977]
[1718994916688,2.457,3502.9,3501.6,2.28466]
[1718994916903,0.29881423,3502.2,3501.0,2.4977]
[1718994917048,2.7027,3502.9,3501.1,0.24977]
[1718994917248,0.298301,3504.1,3501.4,2.2806]
[1718994917249,2.4418,3504.0,3501.4,2.2806]
[1718994917560,2.4418,3504.0,3502.2,4.29723]
[1718994917764,2.4418,3504.0,3502.3,2.28417]
[1718994918099,0.24418,3503.9,3502.8,2.28386]
[1718994918249,0.24418,3503.9,3502.9,2.28379]
[1718994918441,0.24418,3503.9,3502.7,2.28392]
[1718994918646,0.268598,3503.8,3502.4,2.28412]
[1718994918884,0.268598,3503.8,3501.9,2.28442]
[1718994918885,0.268598,3503.8,3502.6,2.013]
[1718994919581,0.268598,3503.8,3502.4,2.28412]
[1718994919947,0.268598,3503.8,3502.5,2.28403]
[1718994920154,0.268598,3503.8,3502.4,2.28413]
[1718994920353,0.268598,3503.8,3502.5,2.28405]
[1718994920572,0.268598,3503.8,3502.4,2.28414]
[1718994920785,0.268598,3503.8,3502.5,2.28405]
[1718994920984,0.268598,3503.8,3503.1,2.28363]
[1718994921191,0.268598,3503.8,3502.8,2.28385]
[1718994921568,0.268598,3503.8,3502.6,4.29699]
[1718994921753,0.268598,3503.8,3502.7,2.28394]
[1718994921754,0.5710398,3503.7,3502.7,2.28394]
[1718994922681,0.5710398,3503.7,3502.9,2.28381]
[1718994923409,0.5710398,3503.7,3502.7,2.28394]
[1718994923590,0.38396378,3503.6,3502.4,2.28412]
[1718994923973,0.38396378,3503.6,3502.2,4.29723]
[1718994924179,0.38396378,3503.6,3501.4,9.7206]
[1718994924414,0.38396378,3503.6,3502.4,2.28412]
[1718994924783,0.38396378,3503.6,3502.5,2.28406]
[1718994925004,3.38396378,3503.6,3502.2,2.013]
[1718994925318,0.38396378,3503.6,3502.6,2.284]
[1718994925516,0.5710398,3503.7,3503.1,2.28367]
[1718994925811,0.5710398,3503.7,3502.6,4.297]
[1718994926000,0.5710398,3503.7,3502.9,2.28377]
[1718994927815,3.0,3503.9,3502.3,2.4799]
[1718994928013,2.4587,3504.6,3503.3,2.013]
[1718994928189,0.1204033,3504.8,3503.5,2.4298]
[1718994928390,0.1204033,3504.8,3504.0,2.013]
[1718994929190,0.1204033,3504.8,3504.0,4.29608]
[1718994929388,0.1204033,3504.8,3504.0,2.013]
[1718994929588,0.01367932,3504.8,3504.3,2.28286]
[1718994930206,0.01367932,3504.8,3504.1,2.28299]
[1718994930820,0.01367932,3504.8,3504.2,0.05212754]
[1718994931020,0.01367932,3504.8,3503.4,2.28343]
[1718994931231,0.01367932,3504.8,3503.3,2.013]
[1718994931384,0.01367932,3504.8,3502.9,2.3282]
[1718994931385,2.3512,3504.7,3503.1,2.28368]
[1718994931590,2.3512,3504.7,3502.9,2.28376]